[Event "Live Chess"]
[Site "Chess.com"]
[Date "2023.05.20"]
[Round "-"]
[White "CheckString"]
[Black "Duglet"]
[Result "0-1"]
[WhiteElo "1276"]
[BlackElo "2324"]
[TimeControl "300"]
[EndTime "10:22:05 PDT"]
[Termination "Duglet won by resignation"]

1. e4 {[%clk 0:04:57.7]} 1... c5 {[%clk 0:04:58.6]} 2. d4 {[%clk 0:04:51.4]}
2... cxd4 {[%clk 0:04:57.5]} 3. Qxd4 {[%clk 0:04:51.3]} 3... Nc6 {[%clk
0:04:56.3]} 4. Qd1 {[%clk 0:04:50.2]} 4... g6 {[%clk 0:04:49.2]} 5. Bd3 {[%clk
0:04:46.4]} 5... Bg7 {[%clk 0:04:47.8]} 6. Ne2 {[%clk 0:04:38]} 6... Nf6 {[%clk
0:04:46.6]} 7. Nbc3 {[%clk 0:04:36.3]} 7... O-O {[%clk 0:04:45.3]} 8. O-O {[%clk
0:04:35.4]} 8... d5 {[%clk 0:04:42.9]} 9. Bf4 {[%clk 0:04:27.7]} 9... d4 {[%clk
0:04:31.8]} 10. Nb5 {[%clk 0:04:21.3]} 10... e5 {[%clk 0:04:28.8]} 11. Bg3
{[%clk 0:04:19.7]} 11... a6 {[%clk 0:04:27.1]} 12. Na3 {[%clk 0:04:17.2]} 12...
Nh5 {[%clk 0:04:17.8]} 13. Nc4 {[%clk 0:04:11.1]} 13... Nxg3 {[%clk 0:04:15.2]}
14. fxg3 {[%clk 0:04:11]} 14... b5 {[%clk 0:04:11.3]} 15. Nd2 {[%clk 0:04:07.8]}
15... Be6 {[%clk 0:04:07.9]} 16. Nf3 {[%clk 0:03:57]} 16... Rc8 {[%clk
0:04:04.3]} 17. Nc1 {[%clk 0:03:49.8]} 17... Nb4 {[%clk 0:04:00.9]} 18. a3
{[%clk 0:03:43.6]} 18... Nxd3 {[%clk 0:03:59.7]} 19. Qxd3 {[%clk 0:03:41.1]}
19... Qc7 {[%clk 0:03:56]} 20. Rf2 {[%clk 0:03:39.1]} 20... Qc4 {[%clk
0:03:46.8]} 21. Ne2 {[%clk 0:03:27]} 21... Qxc2 {[%clk 0:03:43.3]} 22. Qxc2
{[%clk 0:03:25.5]} 22... Rxc2 {[%clk 0:03:43.2]} 23. Rc1 {[%clk 0:03:22]} 23...
Rfc8 {[%clk 0:03:40.1]} 0-1

[Event "Live Chess"]
[Site "Chess.com"]
[Date "2023.05.20"]
[Round "-"]
[White "zdanevych"]
[Black "friarnator"]
[Result "1-0"]
[WhiteElo "1552"]
[BlackElo "1953"]
[TimeControl "300"]
[EndTime "10:22:06 PDT"]
[Termination "zdanevych won on time"]

1. d4 {[%clk 0:04:59.1]} 1... Nf6 {[%clk 0:04:58.6]} 2. c4 {[%clk 0:04:58.5]}
2... e5 {[%clk 0:04:58.1]} 3. dxe5 {[%clk 0:04:57.4]} 3... Ng4 {[%clk
0:04:57.5]} 4. Nf3 {[%clk 0:04:56.4]} 4... Nc6 {[%clk 0:04:57.1]} 5. Bf4 {[%clk
0:04:55.6]} 5... Bb4+ {[%clk 0:04:55.3]} 6. Nbd2 {[%clk 0:04:53.4]} 6... Qe7
{[%clk 0:04:54.8]} 7. h3 {[%clk 0:04:51.5]} 7... Ngxe5 {[%clk 0:04:53.7]} 8.
Nxe5 {[%clk 0:04:51]} 8... Nxe5 {[%clk 0:04:53.2]} 9. e3 {[%clk 0:04:49.3]} 9...
d6 {[%clk 0:04:49.8]} 10. Be2 {[%clk 0:04:46.4]} 10... Be6 {[%clk 0:04:47.6]}
11. b3 {[%clk 0:04:44.8]} 11... O-O {[%clk 0:04:38.9]} 12. O-O {[%clk
0:04:44.3]} 12... Bxd2 {[%clk 0:04:36.8]} 13. Qxd2 {[%clk 0:04:43]} 13... f6
{[%clk 0:04:36.7]} 14. Bg3 {[%clk 0:04:40]} 14... Rfd8 {[%clk 0:04:34.8]} 15.
Rfd1 {[%clk 0:04:23.6]} 15... Ng6 {[%clk 0:04:25.5]} 16. Bf3 {[%clk 0:04:21.7]}
16... Rab8 {[%clk 0:04:17]} 17. Qa5 {[%clk 0:04:17.8]} 17... a6 {[%clk
0:04:14.5]} 18. Rd2 {[%clk 0:04:11.7]} 18... Ne5 {[%clk 0:04:12]} 19. Be2 {[%clk
0:04:05.2]} 19... Nc6 {[%clk 0:04:02.8]} 20. Qc3 {[%clk 0:04:02.5]} 20... Rd7
{[%clk 0:03:51.9]} 21. Rad1 {[%clk 0:04:00.8]} 21... Rbd8 {[%clk 0:03:50.6]} 22.
Bd3 {[%clk 0:03:58.4]} 22... Ne5 {[%clk 0:03:48.3]} 23. Bb1 {[%clk 0:03:57.1]}
23... c6 {[%clk 0:03:44.5]} 24. Qc2 {[%clk 0:03:55.8]} 24... g6 {[%clk
0:03:38.8]} 25. Qb2 {[%clk 0:03:48.2]} 25... Kg7 {[%clk 0:03:24]} 26. Qa3 {[%clk
0:03:39.6]} 26... Nf7 {[%clk 0:03:10.8]} 27. Qb2 {[%clk 0:03:35.3]} 27... d5
{[%clk 0:03:07.6]} 28. cxd5 {[%clk 0:03:29.5]} 28... Rxd5 {[%clk 0:03:05.9]} 29.
Rxd5 {[%clk 0:03:26.9]} 29... Rxd5 {[%clk 0:03:03.3]} 30. Rxd5 {[%clk
0:03:25.5]} 30... Bxd5 {[%clk 0:03:01.7]} 31. Qd4 {[%clk 0:03:16.9]} 31... Ng5
{[%clk 0:02:48.8]} 32. Bd3 {[%clk 0:03:11.6]} 32... Ne4 {[%clk 0:02:45.9]} 33.
Bh2 {[%clk 0:03:08.1]} 33... Kf7 {[%clk 0:02:38.5]} 34. Bc4 {[%clk 0:03:05.1]}
34... Qe6 {[%clk 0:02:33.4]} 35. Bf1 {[%clk 0:02:59.3]} 35... Qd7 {[%clk
0:02:20.8]} 36. Qb6 {[%clk 0:02:56.3]} 36... h5 {[%clk 0:01:50.8]} 37. Qc7
{[%clk 0:02:55]} 37... Qxc7 {[%clk 0:01:49.6]} 38. Bxc7 {[%clk 0:02:54.9]} 38...
f5 {[%clk 0:01:49.1]} 39. f3 {[%clk 0:02:47.8]} 39... Nc3 {[%clk 0:01:47.7]} 40.
e4 {[%clk 0:02:31.4]} 40... fxe4 {[%clk 0:01:43.7]} 41. fxe4 {[%clk 0:02:31.3]}
41... Bxe4 {[%clk 0:01:39.6]} 42. Bc4+ {[%clk 0:02:30.1]} 42... Bd5 {[%clk
0:01:37.6]} 43. Bd3 {[%clk 0:02:26.8]} 43... Nxa2 {[%clk 0:01:35.2]} 44. Bc2
{[%clk 0:02:17.8]} 44... Nc1 {[%clk 0:01:32.2]} 45. b4 {[%clk 0:02:16]} 45...
Ne2+ {[%clk 0:01:30.1]} 46. Kf2 {[%clk 0:02:14.7]} 46... Nd4 {[%clk 0:01:30]}
47. Bd3 {[%clk 0:02:01.1]} 47... Ne6 {[%clk 0:01:21.7]} 48. Bb6 {[%clk
0:01:58.1]} 48... Nf4 {[%clk 0:01:20.6]} 49. Bc2 {[%clk 0:01:55.4]} 49... Nxg2
{[%clk 0:01:18.1]} 50. Kg3 {[%clk 0:01:50.8]} 50... Ne3 {[%clk 0:01:15]} 51.
Bxe3 {[%clk 0:01:45]} 51... Be6 {[%clk 0:01:08.8]} 52. h4 {[%clk 0:01:41.4]}
52... Bd5 {[%clk 0:00:46.4]} 53. Bg5 {[%clk 0:01:40.2]} 53... Kg7 {[%clk
0:00:44.2]} 54. Kf4 {[%clk 0:01:39.6]} 54... Kf7 {[%clk 0:00:41]} 55. Ke5 {[%clk
0:01:39.2]} 55... Bf3 {[%clk 0:00:38.3]} 56. Kd6 {[%clk 0:01:36]} 56... b6
{[%clk 0:00:37.5]} 57. Bd3 {[%clk 0:01:29.3]} 57... a5 {[%clk 0:00:35.8]} 58.
bxa5 {[%clk 0:01:28]} 58... bxa5 {[%clk 0:00:35.7]} 59. Bc2 {[%clk 0:01:24.9]}
59... Bd5 {[%clk 0:00:34]} 60. Ba4 {[%clk 0:01:22.8]} 60... Be4 {[%clk
0:00:29.9]} 61. Kc5 {[%clk 0:01:22]} 61... Ke6 {[%clk 0:00:28.4]} 62. Kb6 {[%clk
0:01:18.7]} 62... Bd5 {[%clk 0:00:24.6]} 63. Kxa5 {[%clk 0:01:17.6]} 63... c5
{[%clk 0:00:24]} 64. Kb5 {[%clk 0:01:13.6]} 64... c4 {[%clk 0:00:19.8]} 65. Bc2
{[%clk 0:01:13.1]} 65... Ke5 {[%clk 0:00:18.5]} 66. Bxg6 {[%clk 0:01:11.2]}
66... Bf3 {[%clk 0:00:11.3]} 67. Kxc4 {[%clk 0:01:07.8]} 67... Ke6 {[%clk
0:00:09.7]} 68. Kd4 {[%clk 0:01:05.7]} 68... Bg4 {[%clk 0:00:07.6]} 69. Bxh5
{[%clk 0:01:04.6]} 69... Bxh5 {[%clk 0:00:06.5]} 70. Kc3 {[%clk 0:01:04.4]}
70... Kf5 {[%clk 0:00:06.4]} 71. Kb4 {[%clk 0:01:04.3]} 71... Kg6 {[%clk
0:00:06.3]} 72. Kc5 {[%clk 0:01:04]} 72... Bg4 {[%clk 0:00:06]} 73. Kb6 {[%clk
0:01:03.9]} 73... Bh5 {[%clk 0:00:05.9]} 74. Kc7 {[%clk 0:01:03.4]} 74... Bg4
{[%clk 0:00:05.8]} 75. Kd6 {[%clk 0:01:02.1]} 75... Bh5 {[%clk 0:00:05.7]} 76.
Ke5 {[%clk 0:01:01.6]} 76... Bg4 {[%clk 0:00:05.6]} 77. Kf4 {[%clk 0:01:00.9]}
77... Bh5 {[%clk 0:00:05.5]} 78. Kg3 {[%clk 0:01:00]} 78... Be2 {[%clk 0:00:05]}
79. Kf2 {[%clk 0:00:59.1]} 79... Bh5 {[%clk 0:00:04.9]} 80. Ke1 {[%clk
0:00:58.2]} 80... Bg4 {[%clk 0:00:04.4]} 81. Bd2 {[%clk 0:00:56.5]} 81... Bh5
{[%clk 0:00:04.3]} 82. Bg5 {[%clk 0:00:55.3]} 82... Bg4 {[%clk 0:00:04.2]} 83.
Kf2 {[%clk 0:00:52.5]} 83... Bh5 {[%clk 0:00:04.1]} 84. Kg3 {[%clk 0:00:52.1]}
84... Bg4 {[%clk 0:00:04]} 85. Kxg4 {[%clk 0:00:51.6]} 85... Kh7 {[%clk
0:00:03.2]} 86. h5 {[%clk 0:00:51]} 86... Kg8 {[%clk 0:00:03.1]} 87. Bc1 {[%clk
0:00:49.1]} 87... Kh7 {[%clk 0:00:03]} 88. Bb2 {[%clk 0:00:48.2]} 88... Kg8
{[%clk 0:00:02.9]} 89. Kg5 {[%clk 0:00:47.7]} 89... Kh7 {[%clk 0:00:02.8]} 90.
h6 {[%clk 0:00:46.9]} 90... Kg8 {[%clk 0:00:02]} 91. Kg6 {[%clk 0:00:46.5]}
91... Kf8 {[%clk 0:00:01.2]} 92. h7 {[%clk 0:00:45.9]} 92... Ke7 {[%clk
0:00:01.1]} 93. h8=Q {[%clk 0:00:45.3]} 93... Ke6 {[%clk 0:00:01]} 94. Qf6+
{[%clk 0:00:44.1]} 94... Kd5 {[%clk 0:00:00.9]} 95. Qe5+ {[%clk 0:00:42.2]}
95... Kc4 {[%clk 0:00:00.1]} 96. Qd4+ {[%clk 0:00:41.3]} 1-0

[Event "Live Chess"]
[Site "Chess.com"]
[Date "2023.05.20"]
[Round "-"]
[White "xx_blindpuffin_xx"]
[Black "YF22Raptor"]
[Result "1-0"]
[WhiteElo "2198"]
[BlackElo "993"]
[TimeControl "300"]
[EndTime "10:22:10 PDT"]
[Termination "xx_blindpuffin_xx won by checkmate"]

1. d4 {[%clk 0:04:59.2]} 1... c6 {[%clk 0:04:59.6]} 2. Bf4 {[%clk 0:04:57]} 2...
d5 {[%clk 0:04:59.4]} 3. e3 {[%clk 0:04:55.8]} 3... Nf6 {[%clk 0:04:59]} 4. Nf3
{[%clk 0:04:55]} 4... Bg4 {[%clk 0:04:58.1]} 5. c4 {[%clk 0:04:53.8]} 5... Bxf3
{[%clk 0:04:57.5]} 6. gxf3 {[%clk 0:04:52.8]} 6... e6 {[%clk 0:04:57.2]} 7. Qb3
{[%clk 0:04:52.1]} 7... Bd6 {[%clk 0:04:56.6]} 8. Bxd6 {[%clk 0:04:49.5]} 8...
Qxd6 {[%clk 0:04:56.1]} 9. Qxb7 {[%clk 0:04:48.7]} 9... O-O {[%clk 0:04:47.4]}
10. Qxa8 {[%clk 0:04:44.1]} 10... Qc7 {[%clk 0:04:40.2]} 11. Nc3 {[%clk
0:04:36.3]} 11... Na6 {[%clk 0:04:34.9]} 12. Qxf8+ {[%clk 0:04:35.9]} 12... Kxf8
{[%clk 0:04:33.7]} 13. cxd5 {[%clk 0:04:33.7]} 13... cxd5 {[%clk 0:04:32.5]} 14.
Bxa6 {[%clk 0:04:31.7]} 14... Qb6 {[%clk 0:04:29]} 15. Bb5 {[%clk 0:04:19.5]}
15... a6 {[%clk 0:04:26.5]} 16. a4 {[%clk 0:04:18.4]} 16... axb5 {[%clk
0:04:24.9]} 17. axb5 {[%clk 0:04:18.3]} 17... Nd7 {[%clk 0:04:13]} 18. O-O
{[%clk 0:04:13.1]} 18... Qd8 {[%clk 0:04:09.1]} 19. Ra7 {[%clk 0:04:06.1]} 19...
Nb6 {[%clk 0:03:58.7]} 20. Rb7 {[%clk 0:04:04.1]} 20... Qg5+ {[%clk 0:03:53.1]}
21. Kh1 {[%clk 0:04:00.5]} 21... Nc4 {[%clk 0:03:48.3]} 22. Ne2 {[%clk
0:03:47.1]} 22... Nxb2 {[%clk 0:03:37]} 23. Ra1 {[%clk 0:03:43.7]} 23... g6
{[%clk 0:03:32.1]} 24. Nf4 {[%clk 0:03:11.2]} 24... Qh4 {[%clk 0:03:18.7]} 25.
Nxe6+ {[%clk 0:03:02.6]} 25... fxe6 {[%clk 0:03:09.3]} 26. Ra8+ {[%clk
0:03:00.1]} 26... Qd8 {[%clk 0:03:07.7]} 27. Rxd8# {[%clk 0:02:59]} 1-0

[Event "Live Chess"]
[Site "Chess.com"]
[Date "2023.05.20"]
[Round "-"]
[White "WilliamofOrange16th"]
[Black "Albul"]
[Result "0-1"]
[WhiteElo "1897"]
[BlackElo "2192"]
[TimeControl "300"]
[EndTime "10:22:18 PDT"]
[Termination "Albul won by resignation"]

1. b3 {[%clk 0:04:57.7]} 1... d6 {[%clk 0:04:53.4]} 2. Bb2 {[%clk 0:04:57.2]}
2... e5 {[%clk 0:04:52.2]} 3. e3 {[%clk 0:04:56.4]} 3... Nc6 {[%clk 0:04:49.8]}
4. Nf3 {[%clk 0:04:55.4]} 4... g6 {[%clk 0:04:48]} 5. d4 {[%clk 0:04:54.7]} 5...
Bg7 {[%clk 0:04:47.3]} 6. dxe5 {[%clk 0:04:53.4]} 6... Nxe5 {[%clk 0:04:45.8]}
7. Nxe5 {[%clk 0:04:52.6]} 7... Bxe5 {[%clk 0:04:44.3]} 8. Bxe5 {[%clk
0:04:51.4]} 8... dxe5 {[%clk 0:04:43.9]} 9. Qxd8+ {[%clk 0:04:50.8]} 9... Kxd8
{[%clk 0:04:43.4]} 10. Nc3 {[%clk 0:04:45.9]} 10... Bf5 {[%clk 0:04:41.4]} 11.
O-O-O+ {[%clk 0:04:44.8]} 11... Ke7 {[%clk 0:04:40.6]} 12. Nd5+ {[%clk
0:04:43.3]} 12... Kd6 {[%clk 0:04:33.7]} 13. e4 {[%clk 0:04:19.7]} 13... Bg4
{[%clk 0:04:23.6]} 14. f3 {[%clk 0:04:17.3]} 14... Be6 {[%clk 0:04:22.3]} 15.
Nf4+ {[%clk 0:04:13.3]} 15... Ke7 {[%clk 0:04:20.1]} 16. Nxe6 {[%clk 0:04:12.3]}
16... Kxe6 {[%clk 0:04:19.2]} 17. Bc4+ {[%clk 0:04:11]} 17... Ke7 {[%clk
0:04:18.4]} 18. Rd2 {[%clk 0:04:07.8]} 18... Nf6 {[%clk 0:04:13.2]} 19. Rhd1
{[%clk 0:04:06.5]} 19... Rac8 {[%clk 0:03:51.9]} 20. Bd5 {[%clk 0:03:56.9]}
20... b6 {[%clk 0:03:45.5]} 21. c3 {[%clk 0:03:34.9]} 21... Rcd8 {[%clk
0:03:33.1]} 22. b4 {[%clk 0:03:25.6]} 22... Rd6 {[%clk 0:03:25]} 23. Kc2 {[%clk
0:03:17.3]} 23... Rhd8 {[%clk 0:03:22.4]} 24. g3 {[%clk 0:02:57.7]} 24... g5
{[%clk 0:03:20.3]} 25. Bb3 {[%clk 0:02:54.4]} 25... Ne8 {[%clk 0:03:04.3]} 26.
Ba4 {[%clk 0:02:48.8]} 26... Rxd2+ {[%clk 0:03:01.4]} 27. Rxd2 {[%clk
0:02:47.9]} 27... Rxd2+ {[%clk 0:03:00.5]} 28. Kxd2 {[%clk 0:02:47.8]} 28... Nd6
{[%clk 0:02:59.5]} 29. Kd3 {[%clk 0:02:43.2]} 29... f6 {[%clk 0:02:54.3]} 30.
Bb3 {[%clk 0:02:41.9]} 30... h6 {[%clk 0:02:48.8]} 31. a4 {[%clk 0:02:40.6]}
31... c5 {[%clk 0:02:46.3]} 32. Bc4 {[%clk 0:02:32.4]} 32... Ne8 {[%clk
0:02:28.4]} 33. a5 {[%clk 0:02:29.5]} 33... Kd6 {[%clk 0:02:27.1]} 34. Bf7
{[%clk 0:02:13.6]} 34... Nc7 {[%clk 0:02:24]} 35. axb6 {[%clk 0:02:11]} 35...
axb6 {[%clk 0:02:21.4]} 36. bxc5+ {[%clk 0:02:09.1]} 36... Kxc5 {[%clk
0:02:19.4]} 37. Bb3 {[%clk 0:02:02.9]} 37... Nb5 {[%clk 0:02:11.2]} 38. Kd2
{[%clk 0:01:54.7]} 38... Nd6 {[%clk 0:02:05.1]} 39. Kd3 {[%clk 0:01:48.7]} 39...
b5 {[%clk 0:02:04.1]} 40. Bd5 {[%clk 0:01:45]} 40... Nc8 {[%clk 0:01:58.6]} 41.
Be6 {[%clk 0:01:38.9]} 41... Nb6 {[%clk 0:01:57.6]} 42. Bb3 {[%clk 0:01:36.7]}
42... Na4 {[%clk 0:01:56.5]} 43. Be6 {[%clk 0:01:28.9]} 43... b4 {[%clk
0:01:49.3]} 44. cxb4+ {[%clk 0:01:27.7]} 44... Kxb4 {[%clk 0:01:48.9]} 45. Bf7
{[%clk 0:01:01.4]} 45... Nc5+ {[%clk 0:01:37.5]} 46. Kd2 {[%clk 0:00:58.7]}
46... Nb7 {[%clk 0:01:34.9]} 47. Kd3 {[%clk 0:00:57.2]} 47... Nd6 {[%clk
0:01:33.7]} 48. Be6 {[%clk 0:00:53.3]} 48... Nb5 {[%clk 0:01:31.3]} 49. Ke3
{[%clk 0:00:41.6]} 49... Kc3 {[%clk 0:01:28.5]} 50. f4 {[%clk 0:00:40.7]} 50...
Nd4 {[%clk 0:01:25.2]} 51. Bc8 {[%clk 0:00:28.9]} 51... Nc2+ {[%clk 0:01:19.8]}
52. Kf3 {[%clk 0:00:27.7]} 52... Kd4 {[%clk 0:01:17.3]} 53. fxg5 {[%clk
0:00:25.6]} 53... fxg5 {[%clk 0:01:14.2]} 54. Bf5 {[%clk 0:00:21.4]} 54... Ne3
{[%clk 0:01:07.2]} 55. h4 {[%clk 0:00:19.2]} 55... gxh4 {[%clk 0:00:53.1]} 56.
gxh4 {[%clk 0:00:19.1]} 56... Nxf5 {[%clk 0:00:40.8]} 57. exf5 {[%clk 0:00:19]}
57... e4+ {[%clk 0:00:40.1]} 58. Kf4 {[%clk 0:00:16]} 58... e3 {[%clk
0:00:39.2]} 59. f6 {[%clk 0:00:15.7]} 59... e2 {[%clk 0:00:38.3]} 60. f7 {[%clk
0:00:15.6]} 60... e1=Q {[%clk 0:00:37.3]} 0-1

[Event "Live Chess"]
[Site "Chess.com"]
[Date "2023.05.20"]
[Round "-"]
[White "bedsdrout"]
[Black "jagbama"]
[Result "0-1"]
[WhiteElo "428"]
[BlackElo "1140"]
[TimeControl "300"]
[EndTime "10:22:20 PDT"]
[Termination "jagbama won by resignation"]

1. e4 {[%clk 0:04:53.6]} 1... e5 {[%clk 0:04:54.3]} 2. Bc4 {[%clk 0:04:52.6]}
2... Nc6 {[%clk 0:04:50.9]} 3. Qh5 {[%clk 0:04:49.7]} 3... Qf6 {[%clk
0:04:44.2]} 4. Nh3 {[%clk 0:04:44.7]} 4... g6 {[%clk 0:04:37.6]} 5. Qf3 {[%clk
0:04:32.3]} 5... Qxf3 {[%clk 0:04:35.1]} 6. gxf3 {[%clk 0:04:28.4]} 6... Nd4
{[%clk 0:04:34]} 7. O-O {[%clk 0:04:18.2]} 7... Nxc2 {[%clk 0:04:31.6]} 8. d3
{[%clk 0:04:06.6]} 8... Nxa1 {[%clk 0:04:26.3]} 9. Bg5 {[%clk 0:04:03.2]} 9...
h6 {[%clk 0:04:17.5]} 10. Nc3 {[%clk 0:03:54.4]} 10... d6 {[%clk 0:04:10.8]} 11.
Nd5 {[%clk 0:03:50.4]} 11... Bxh3 {[%clk 0:04:07.9]} 12. Nxc7+ {[%clk
0:03:47.6]} 12... Kd7 {[%clk 0:04:06.9]} 13. Bb5+ {[%clk 0:03:31.9]} 13... Kxc7
{[%clk 0:04:05.1]} 14. Be3 {[%clk 0:03:26.4]} 14... Bxf1 {[%clk 0:04:03.3]} 15.
Kxf1 {[%clk 0:03:23.6]} 15... Nc2 {[%clk 0:04:01.1]} 16. Ke2 {[%clk 0:03:13.9]}
16... Nxe3 {[%clk 0:03:59.6]} 17. fxe3 {[%clk 0:03:12.4]} 17... Nf6 {[%clk
0:03:55.2]} 18. a4 {[%clk 0:03:11.2]} 18... g5 {[%clk 0:03:53.5]} 19. a5 {[%clk
0:03:10]} 19... b6 {[%clk 0:03:49.5]} 20. axb6+ {[%clk 0:03:08.2]} 20... axb6
{[%clk 0:03:48.5]} 21. b4 {[%clk 0:03:00]} 21... Ra2+ {[%clk 0:03:46.7]} 22. Kd1
{[%clk 0:02:54.2]} 22... Rxh2 {[%clk 0:03:45.8]} 23. d4 {[%clk 0:02:41.1]} 23...
Rg2 {[%clk 0:03:44.5]} 24. d5 {[%clk 0:02:39.9]} 24... h5 {[%clk 0:03:43]} 25.
f4 {[%clk 0:02:35.8]} 25... gxf4 {[%clk 0:03:36.8]} 26. Ba4 {[%clk 0:02:26.1]}
26... fxe3 {[%clk 0:03:35.4]} 27. b5 {[%clk 0:02:22.1]} 27... Nxe4 {[%clk
0:03:34.2]} 28. Bc2 {[%clk 0:02:08.5]} 28... e2+ {[%clk 0:03:32.2]} 29. Ke1
{[%clk 0:01:59.7]} 29... Nc3 {[%clk 0:03:30.3]} 30. Bf5 {[%clk 0:01:48.9]} 30...
Rg1+ {[%clk 0:03:28.3]} 31. Kd2 {[%clk 0:01:42.3]} 31... e1=Q+ {[%clk
0:03:27.3]} 32. Kd3 {[%clk 0:01:41.3]} 32... Rg3+ {[%clk 0:03:19.2]} 33. Kc4
{[%clk 0:01:37.3]} 33... Nxd5 {[%clk 0:03:03.5]} 34. Bd3 {[%clk 0:01:18.2]}
34... Ne3+ {[%clk 0:02:47.6]} 35. Kb3 {[%clk 0:01:02.6]} 35... Nd1 {[%clk
0:02:32.4]} 36. Kc4 {[%clk 0:01:00.8]} 36... Rxd3 {[%clk 0:02:29.9]} 37. Kxd3
{[%clk 0:00:59.7]} 37... Qe3+ {[%clk 0:02:28.1]} 38. Kc2 {[%clk 0:00:56.2]}
38... Nf2 {[%clk 0:02:17.3]} 39. Kb2 {[%clk 0:00:50.2]} 39... h4 {[%clk
0:02:13.2]} 40. Ka1 {[%clk 0:00:43.3]} 40... h3 {[%clk 0:02:12.5]} 41. Kb2
{[%clk 0:00:42.2]} 41... h2 {[%clk 0:02:11.7]} 42. Ka1 {[%clk 0:00:41.3]} 42...
Ne4 {[%clk 0:02:09.7]} 43. Kb2 {[%clk 0:00:37.7]} 43... Rg8 {[%clk 0:02:07.2]}
44. Ka1 {[%clk 0:00:36]} 44... Qd3 {[%clk 0:02:04.9]} 45. Kb2 {[%clk 0:00:33.8]}
45... Rg2+ {[%clk 0:02:03.9]} 0-1

[Event "Live Chess"]
[Site "Chess.com"]
[Date "2023.05.20"]
[Round "-"]
[White "Chris_pea"]
[Black "grillage"]
[Result "0-1"]
[WhiteElo "615"]
[BlackElo "1845"]
[TimeControl "300"]
[EndTime "10:22:23 PDT"]
[Termination "grillage won on time"]

1. e4 {[%clk 0:04:55.9]} 1... d5 {[%clk 0:04:58.7]} 2. exd5 {[%clk 0:04:52.2]}
2... Qxd5 {[%clk 0:04:57.7]} 3. Nc3 {[%clk 0:04:49.8]} 3... Qd8 {[%clk
0:04:56.3]} 4. Nf3 {[%clk 0:04:43.8]} 4... Nf6 {[%clk 0:04:53]} 5. d4 {[%clk
0:04:42.2]} 5... Bg4 {[%clk 0:04:48.6]} 6. Be2 {[%clk 0:04:37.7]} 6... e6 {[%clk
0:04:46.6]} 7. h3 {[%clk 0:04:35.2]} 7... Bxf3 {[%clk 0:04:44.5]} 8. Bxf3 {[%clk
0:04:33.2]} 8... c6 {[%clk 0:04:44]} 9. O-O {[%clk 0:04:30.5]} 9... Nbd7 {[%clk
0:04:42.2]} 10. Bg5 {[%clk 0:04:18.6]} 10... Be7 {[%clk 0:04:40.4]} 11. Qd2
{[%clk 0:04:07.6]} 11... O-O {[%clk 0:04:38.2]} 12. Rae1 {[%clk 0:04:04.7]}
12... Re8 {[%clk 0:04:28.3]} 13. Bxf6 {[%clk 0:03:42.4]} 13... Nxf6 {[%clk
0:04:26.6]} 14. Ne4 {[%clk 0:03:38.7]} 14... Qb6 {[%clk 0:04:06.8]} 15. b3
{[%clk 0:03:00.6]} 15... Rad8 {[%clk 0:04:02]} 16. c3 {[%clk 0:02:46.5]} 16...
Rd7 {[%clk 0:03:53.9]} 17. Nc5 {[%clk 0:02:29]} 17... Bxc5 {[%clk 0:03:52.4]}
18. Qg5 {[%clk 0:01:33.4]} 18... Be7 {[%clk 0:03:46.5]} 19. Qd2 {[%clk
0:01:08.5]} 19... Red8 {[%clk 0:03:40.5]} 20. Re3 {[%clk 0:00:49.8]} 20... c5
{[%clk 0:03:36.2]} 21. Rd3 {[%clk 0:00:42.7]} 21... cxd4 {[%clk 0:03:33.3]} 22.
c4 {[%clk 0:00:18.4]} 22... Bb4 {[%clk 0:03:25.7]} 23. Qf4 {[%clk 0:00:12.3]}
23... Qc7 {[%clk 0:02:59.8]} 24. Qxc7 {[%clk 0:00:05.8]} 24... Rxc7 {[%clk
0:02:58.9]} 25. Rfd1 {[%clk 0:00:04.4]} 25... e5 {[%clk 0:02:57.5]} 0-1

[Event "Live Chess"]
[Site "Chess.com"]
[Date "2023.05.20"]
[Round "-"]
[White "JohanKjeldahl"]
[Black "Bunny55"]
[Result "1-0"]
[WhiteElo "1750"]
[BlackElo "963"]
[TimeControl "300"]
[EndTime "10:22:24 PDT"]
[Termination "JohanKjeldahl won by resignation"]

1. e4 {[%clk 0:04:57.8]} 1... c5 {[%clk 0:04:58]} 2. Nf3 {[%clk 0:04:55.9]} 2...
d6 {[%clk 0:04:56.8]} 3. d4 {[%clk 0:04:54.7]} 3... cxd4 {[%clk 0:04:55.4]} 4.
Nxd4 {[%clk 0:04:53.9]} 4... Nf6 {[%clk 0:04:53.7]} 5. Nc3 {[%clk 0:04:53.3]}
5... g6 {[%clk 0:04:51.9]} 6. Be3 {[%clk 0:04:51.3]} 6... Bg7 {[%clk 0:04:50.8]}
7. Bc4 {[%clk 0:04:50.7]} 7... O-O {[%clk 0:04:49.8]} 8. f3 {[%clk 0:04:50]}
8... Nc6 {[%clk 0:04:47.4]} 9. Qd2 {[%clk 0:04:48.9]} 9... Bd7 {[%clk
0:04:44.8]} 10. h4 {[%clk 0:04:47.7]} 10... a5 {[%clk 0:04:39.9]} 11. g4 {[%clk
0:04:44.3]} 11... Bxg4 {[%clk 0:04:31.2]} 12. fxg4 {[%clk 0:04:42.7]} 12... Nxg4
{[%clk 0:04:30.1]} 13. Nxc6 {[%clk 0:04:38.7]} 13... bxc6 {[%clk 0:04:24.6]} 14.
h5 {[%clk 0:04:34]} 14... Nxe3 {[%clk 0:04:22.6]} 15. Qxe3 {[%clk 0:04:32.4]}
15... Rb8 {[%clk 0:04:12.7]} 16. hxg6 {[%clk 0:04:30.2]} 16... h6 {[%clk
0:04:07.7]} 17. gxf7+ {[%clk 0:04:26.8]} 17... Rxf7 {[%clk 0:04:04.4]} 18. Bxf7+
{[%clk 0:04:24.8]} 18... Kxf7 {[%clk 0:04:03.3]} 19. Qf3+ {[%clk 0:04:14.6]}
19... Ke8 {[%clk 0:04:00.4]} 20. Qh5+ {[%clk 0:04:09.7]} 20... Kf8 {[%clk
0:03:56.7]} 21. O-O+ {[%clk 0:04:03.3]} 21... Kg8 {[%clk 0:03:54]} 22. Rf7
{[%clk 0:03:41.6]} 22... Qb6+ {[%clk 0:03:50]} 23. Kh1 {[%clk 0:03:36.5]} 23...
Qxb2 {[%clk 0:03:45.3]} 24. Rg1 {[%clk 0:03:28.7]} 24... Qxc3 {[%clk 0:03:19.3]}
25. Rgxg7+ {[%clk 0:03:25.1]} 25... Qxg7 {[%clk 0:03:17.4]} 26. Rxg7+ {[%clk
0:03:23.6]} 26... Kxg7 {[%clk 0:03:16.5]} 27. Qxa5 {[%clk 0:03:19.2]} 27... Rb1+
{[%clk 0:03:12.4]} 28. Kg2 {[%clk 0:03:17.8]} 28... Rb2 {[%clk 0:03:10.5]} 29.
Qc3+ {[%clk 0:03:15.3]} 29... Kh7 {[%clk 0:03:05.8]} 30. Qxb2 {[%clk 0:03:13.7]}
1-0